bitfinex/quotes_SOLUSD_20240607
["timestamp","ask_amount","ask_price","bid_price","bid_amount"]
[1717768803057,6.08299727,171.49,171.43,79.99]
[1717768803373,2.1569,171.54,171.44,21.8249]
[1717768803567,6.0827796,171.51,171.44,21.8249]
[1717768803775,2.1569,171.54,171.44,21.8249]
[1717768804161,6.0814419,171.51,171.44,21.8249]
[1717768804475,15.0988,171.54,171.44,21.8249]
[1717768804781,8.24056722,171.51,171.44,21.8249]
[1717768804958,2.1574,171.51,171.44,21.8249]
[1717768805379,8.24076965,171.51,171.44,21.8249]
[1717768806257,6.08336965,171.51,171.44,6.5503]
[1717768806478,2.1576,171.49,171.44,6.5503]
[1717768806663,2.1576,171.48,171.44,6.5503]
[1717768806865,2.1577,171.48,171.4,6.4117]
[1717768807070,2.1578,171.47,171.4,6.4117]
[1717768807267,20.0,171.5,171.4,6.4117]
[1717768807470,2.1581,171.45,171.4,6.4117]
[1717768808279,2.1582,171.44,171.35,15.9248]
[1717768808478,2.1582,171.44,171.36,6.0885]
[1717768808680,2.1582,171.44,171.36,11.9235]
[1717768808888,2.1582,171.44,171.36,6.0885]
[1717768810493,2.1583,171.43,171.36,6.0885]
[1717768811483,2.1582,171.44,171.36,6.0885]
[1717768811979,4.3158,171.46,171.36,6.0885]
[1717768811980,2.1583,171.43,171.36,6.0885]
[1717768813282,2.1585,171.42,171.32,41.4646]
[1717768813487,2.1585,171.42,171.33,45.0]
[1717768813685,2.1583,171.43,171.33,45.0]
[1717768814262,2.1583,171.43,171.33,50.835]
[1717768814468,2.1583,171.43,171.33,45.0]
[1717768814985,2.1582,171.44,171.33,45.0]
[1717768815188,2.1582,171.44,171.33,199.99]
[1717768815483,2.1583,171.43,171.33,199.99]
[1717768816988,2.1582,171.44,171.33,199.99]
[1717768817489,6.08161177,171.46,171.35,154.99]
[1717768817782,12.945,171.5,171.39,154.99]
[1717768817783,2.1574,171.5,171.39,154.99]
[1717768817985,8.2313915,171.51,171.39,154.99]
[1717768818166,6.0740915,171.51,171.4,45.0]
[1717768818567,6.0740915,171.51,171.4,79.99]
[1717768818777,8.2313915,171.51,171.4,79.99]
[1717768818984,8.2313915,171.51,171.41,120.0]
[1717768819184,6.0740915,171.51,171.42,79.99]
[1717768819381,2.157,171.53,171.43,126.6308]
[1717768819582,17.0542,171.56,171.43,126.6308]
[1717768819583,17.0542,171.56,171.44,79.99]
[1717768819790,2.157,171.53,171.44,79.99]
[1717768820980,2.1571,171.52,171.44,79.99]
[1717768821179,2.1573,171.51,171.44,45.0]
[1717768821370,2.1573,171.51,171.43,6.6308]
[1717768821680,6.4715,171.52,171.43,6.6308]
[1717768821861,2.1575,171.5,171.43,6.6308]
[1717768822066,2.1575,171.49,171.43,6.6308]
[1717768822809,2.1576,171.48,171.39,6.2148]
[1717768824093,2.1576,171.49,171.39,6.2148]
[1717768831477,2.1575,171.5,171.39,6.2148]
[1717768831678,2.1575,171.49,171.39,6.2148]
[1717768832101,6.07319599,171.51,171.4,79.99]
[1717768832600,8.23049599,171.51,171.4,79.99]
[1717768832998,2.1574,171.5,171.4,79.99]
[1717768834001,8.23049599,171.51,171.41,154.99]
[1717768834204,2.1574,171.5,171.42,45.0]
[1717768834387,8.23049599,171.51,171.42,45.0]
[1717768834703,2.1574,171.5,171.42,45.0]
[1717768836702,2.1576,171.49,171.42,45.0]
[1717768836902,2.1576,171.49,171.39,126.2148]
[1717768836903,2.1576,171.49,171.4,34.99]
[1717768837101,2.1576,171.49,171.41,45.0]
[1717768837901,2.1576,171.48,171.41,45.0]
[1717768838106,2.1576,171.49,171.4,34.99]
[1717768838527,2.1577,171.48,171.4,34.99]
[1717768838807,2.1576,171.49,171.4,34.99]
[1717768839705,2.1575,171.5,171.4,34.99]
[1717768840579,2.1575,171.49,171.4,34.99]
[1717768840785,2.1574,171.5,171.4,34.99]
[1717768841285,2.1574,171.5,171.41,45.0]
[1717768841886,2.1575,171.49,171.41,45.0]
[1717768842109,2.1576,171.48,171.4,34.99]
[1717768842306,2.1576,171.49,171.4,34.99]
[1717768843320,2.1577,171.48,171.4,34.99]
[1717768843498,2.1576,171.49,171.4,34.99]
[1717768843696,2.1576,171.48,171.37,35.01]
[1717768843889,2.1576,171.48,171.36,101.51803263]
[1717768843890,2.1576,171.48,171.38,80.01]
[1717768844900,10.7639,171.5,171.38,80.01]
[1717768845100,2.1577,171.48,171.38,80.01]
[1717768845503,2.1576,171.49,171.38,80.01]
[1717768847304,2.1577,171.48,171.38,80.01]
[1717768847911,10.7639,171.5,171.38,80.01]
[1717768848193,2.1577,171.48,171.38,80.01]
[1717768850421,2.1576,171.49,171.39,155.01]
[1717768850604,8.6064,171.5,171.4,45.0]
[1717768851516,6.449,171.5,171.41,155.01]
[1717768851819,6.449,171.5,171.42,45.0]
[1717768852504,6.449,171.5,171.42,80.01]
[1717768853406,8.6064,171.5,171.42,80.01]
[1717768855338,6.449,171.5,171.42,80.01]
[1717768857510,8.6064,171.5,171.42,45.0]
[1717768857715,6.449,171.5,171.41,80.01]
[1717768866411,8.6064,171.5,171.39,155.01]
[1717768867119,6.449,171.5,171.39,155.01]
[1717768867509,8.6064,171.5,171.39,155.01]
[1717768867709,8.6064,171.5,171.4,45.0]
[1717768867932,6.449,171.5,171.4,45.0]
[1717768869239,8.6064,171.5,171.4,45.0]
[1717768871537,6.449,171.5,171.4,45.0]
[1717768871742,6.449,171.5,171.35,120.0]
[1717768871743,15.2032,171.48,171.35,120.0]
[1717768871931,2.1578,171.47,171.36,35.01]
[1717768872610,17.3609,171.48,171.37,120.0]
[1717768872815,15.2032,171.48,171.39,120.0]
[1717768873020,15.2032,171.48,171.41,120.0]
[1717768873236,6.449,171.5,171.42,45.0]
[1717768873441,6.449,171.5,171.43,120.0]
[1717768874121,6.449,171.5,171.44,45.0]
[1717768880041,6.449,171.5,171.41,155.01]
[1717768880354,6.449,171.5,171.42,45.0]
[1717768884234,6.449,171.5,171.41,35.01]
[1717768884235,8.6065,171.5,171.4,35.01]
[1717768884641,6.449,171.5,171.4,35.01]
[1717768885565,6.449,171.5,171.41,165.0]
[1717768888446,6.449,171.5,171.41,200.01]
[1717768889546,6.449,171.5,171.43,120.0]
[1717768889753,6.449,171.5,171.44,45.0]
[1717768892970,6.449,171.5,171.41,155.01]
[1717768893356,6.449,171.5,171.42,45.0]
[1717768894463,6.449,171.5,171.43,120.0]
[1717768894648,6.449,171.5,171.44,45.0]
[1717768897177,16.2555,171.52,171.44,80.01]
[1717768898679,16.2555,171.52,171.45,120.0]
[1717768898855,16.2555,171.52,171.46,45.0]
[1717768899371,6.5915,171.54,171.46,45.0]
[1717768899573,6.5915,171.54,171.47,155.01]
[1717768899755,6.5915,171.54,171.48,45.0]
[1717768902670,6.5915,171.54,171.46,35.01]
[1717768903558,6.5915,171.54,171.43,120.0]
[1717768903559,6.5915,171.54,171.44,35.01]
[1717768903763,6.5915,171.54,171.45,45.0]
[1717768904276,8.7484,171.54,171.45,45.0]
[1717768904666,6.5915,171.54,171.45,45.0]
[1717768912273,6.5915,171.54,171.46,155.01]
[1717768912480,6.5915,171.54,171.47,80.01]
[1717768916389,6.5915,171.54,171.48,155.01]
[1717768916573,6.5915,171.54,171.49,45.0]
[1717768921284,16.0688,171.57,171.49,200.01]
[1717768934889,16.0688,171.57,171.49,204.7938625]
[1717768935607,16.0688,171.57,171.51,155.01]
[1717768935901,6.4507,171.58,171.52,45.0]
[1717768937801,6.4507,171.58,171.52,80.01]
[1717768941610,6.4507,171.58,171.53,155.01]
[1717768941912,6.4507,171.58,171.54,45.0]
[1717768946112,6.4507,171.58,171.53,35.01]
[1717768946307,6.4507,171.58,171.52,35.01]
[1717768947614,6.4586,171.6,171.53,45.0]
[1717768951197,8.6148,171.6,171.53,45.0]
[1717768951503,6.4586,171.6,171.5,35.01]
[1717768951704,2.1566,171.57,171.47,35.01]
[1717768951911,2.1568,171.55,171.47,35.01]
[1717768952303,21.4856,171.56,171.46,35.01]
[1717768952304,23.6423,171.56,171.46,35.01]
[1717768952509,21.4856,171.56,171.47,120.0]
[1717768952713,21.4856,171.56,171.47,155.01]
[1717768953522,21.4856,171.56,171.48,80.01]
[1717768954023,21.4856,171.56,171.48,35.01]
[1717768955213,21.4856,171.56,171.49,45.0]
[1717768957408,21.4856,171.56,171.49,165.0]
[1717768957611,6.2343,171.56,171.49,200.01]
[1717768958303,22.4446,171.6,171.51,155.01]
[1717768958525,22.4446,171.6,171.52,45.0]
[1717768958836,22.4446,171.6,171.52,80.01]
[1717768966220,24.6007,171.6,171.52,80.01]
[1717768966437,22.4446,171.6,171.5,39.71816456]
[1717768966733,22.4446,171.6,171.51,45.0]
[1717768967329,22.4446,171.6,171.51,200.01]
[1717768967839,22.4446,171.6,171.51,80.01]
[1717768969236,2.1563,171.59,171.51,45.0]
[1717768969815,2.1563,171.59,171.48,100.75727997]
[1717768971446,2.1563,171.59,171.49,45.0]
[1717768971738,2.1563,171.59,171.49,165.0]
[1717768971913,24.6008,171.6,171.49,200.01]
[1717768976024,2.1563,171.59,171.49,200.01]
[1717768977347,6.08053047,171.63,171.43,120.0]
[1717768977348,6.5137,171.57,171.43,120.0]
[1717768977518,2.1569,171.54,171.44,35.01]
[1717768977719,6.5137,171.55,171.44,35.01]
[1717768977720,2.157,171.53,171.44,35.01]
[1717768977919,2.1571,171.53,171.44,35.01]
[1717768978349,2.1569,171.54,171.41,185.77412969]
[1717768978567,2.1569,171.54,171.42,35.01]
[1717768978845,2.1569,171.54,171.42,40.845]
[1717768979024,2.1569,171.54,171.43,85.845]
[1717768979229,2.1569,171.54,171.43,80.01]
[1717768979942,2.1569,171.54,171.43,200.01]
[1717768980939,2.1569,171.54,171.43,80.01]
[1717768981143,18.2813,171.53,171.43,80.01]
[1717768982246,18.2813,171.53,171.43,200.01]
[1717768982451,18.2813,171.53,171.43,80.01]
[1717768983756,2.1572,171.52,171.43,35.01]
[1717768983937,8.3762,171.52,171.41,39.69440578]
[1717768984133,8.3762,171.52,171.41,35.01]
[1717768984749,8.3762,171.52,171.4,35.01]
[1717768984750,6.219,171.52,171.4,35.01]
[1717768984952,16.1243,171.53,171.39,254.0]
[1717768984953,6.219,171.47,171.39,254.0]
[1717768985163,6.219,171.47,171.38,35.01]
[1717768985842,6.219,171.47,171.42,155.01]
[1717768986036,6.219,171.47,171.42,35.01]
[1717768988138,6.219,171.47,171.41,35.01]
[1717768988456,6.219,171.47,171.42,80.01]
[1717768988634,6.4882,171.46,171.42,80.01]
[1717768989845,18.177,171.51,171.42,80.01]
[1717768990060,6.4882,171.5,171.42,80.01]
[1717768990233,6.4882,171.5,171.42,45.0]
[1717768990436,2.1576,171.49,171.41,45.0]
[1717768990638,8.6456,171.5,171.4,80.01]
[1717768990837,6.4882,171.5,171.4,80.01]
[1717768991038,8.6456,171.5,171.4,80.01]
[1717768991663,2.1575,171.49,171.4,80.01]
[1717768992242,8.6457,171.5,171.4,80.01]
[1717768992443,6.4882,171.5,171.37,35.01]
[1717768992643,2.1578,171.47,171.37,35.01]
[1717768992842,2.1578,171.47,171.38,45.0]
[1717768995338,21.2624,171.46,171.38,45.0]
[1717768995959,21.2624,171.46,171.36,35.01]
[1717768996158,21.2624,171.46,171.37,45.0]
[1717768996360,21.2624,171.46,171.38,155.01]
[1717768996538,21.2624,171.46,171.39,45.0]
[1717768997352,21.2624,171.46,171.4,155.01]
[1717768997671,6.6527,171.49,171.41,45.0]
[1717768999661,8.8102,171.49,171.41,45.0]
[1717769000883,2.1578,171.47,171.37,35.01]
[1717769001487,2.158,171.45,171.34,70.36554599]
[1717769001771,2.1581,171.44,171.34,70.36554599]
[1717769002081,18.025,171.45,171.34,105.37554599]
[1717769002272,18.025,171.45,171.34,100.81100134]
[1717769002773,15.8669,171.45,171.34,100.81100134]
[1717769003873,18.0249,171.45,171.34,100.81100134]
[1717769005381,15.8669,171.45,171.34,100.81100134]
[1717769005874,15.8669,171.45,171.36,120.0]
[1717769006269,15.8669,171.45,171.36,155.01]
[1717769008356,15.8669,171.45,171.38,155.01]
[1717769009685,6.5284,171.47,171.4,155.01]
[1717769010185,6.5284,171.47,171.4,35.01]
[1717769010684,6.5284,171.47,171.39,35.01]
[1717769011666,8.6862,171.47,171.39,35.01]
[1717769012358,6.5284,171.47,171.39,35.01]
[1717769012763,8.6862,171.47,171.39,35.01]
[1717769012966,8.6862,171.47,171.37,35.01]
[1717769013370,6.5284,171.47,171.39,155.01]
[1717769013569,6.5284,171.47,171.39,35.01]
[1717769014389,6.5284,171.47,171.38,35.01]
[1717769015585,6.5284,171.47,171.39,155.01]
[1717769019077,6.5284,171.47,171.38,35.01]
[1717769019869,8.6862,171.47,171.38,35.01]
[1717769020073,6.5284,171.47,171.38,35.01]
[1717769025579,6.5284,171.47,171.39,155.01]
[1717769029083,8.6862,171.47,171.39,35.01]
[1717769029384,8.6862,171.47,171.39,155.01]
[1717769029587,8.6862,171.47,171.39,35.01]
[1717769029783,6.5284,171.47,171.39,35.01]
[1717769029988,2.1582,171.44,171.36,35.01]
[1717769030284,2.1583,171.43,171.36,35.01]
[1717769030460,18.7993,171.44,171.36,35.01]
[1717769030664,16.6411,171.44,171.36,35.01]
[1717769032481,6.3768,171.43,171.35,35.01]
[1717769032667,8.5351,171.43,171.35,35.01]
[1717769032972,6.3768,171.43,171.35,35.01]
[1717769034381,6.3768,171.43,171.34,35.01]
[1717769034600,2.1584,171.42,171.34,35.01]
[1717769034796,6.3768,171.43,171.34,35.01]
[1717769034797,8.5351,171.43,171.34,35.01]
[1717769035096,6.3768,171.43,171.34,35.01]
[1717769035265,22.4691,171.42,171.4,2.1586]
[1717769035470,2.1582,171.44,171.4,2.1586]
[1717769035875,6.175,171.42,171.34,35.01]
[1717769036075,6.175,171.42,171.4,2.1586]
[1717769036282,6.4739,171.42,171.41,2.1585]
[1717769037502,6.4739,171.42,171.35,155.01]
[1717769037997,6.4739,171.42,171.34,35.01]
[1717769039374,2.1583,171.43,171.39,2.1587]
[1717769039889,15.397,171.42,171.39,2.1587]
[1717769040395,6.2474,171.41,171.39,2.1587]
[1717769040593,6.2474,171.4,171.39,2.1587]
[1717769043281,22.7883,171.4,171.39,2.1587]
[1717769044597,16.5409,171.4,171.38,2.1588]
[1717769044778,6.1115,171.39,171.38,2.1588]
[1717769045885,22.3379,171.39,171.38,2.1588]
[1717769047098,6.1115,171.39,171.38,2.1588]
[1717769047295,16.202,171.43,171.31,35.01]
[1717769047296,6.0066,171.4,171.31,35.01]
[1717769047503,6.0066,171.39,171.36,2.1591]
[1717769047711,6.0066,171.37,171.36,2.1591]
[1717769049586,16.202,171.38,171.35,2.1593]
[1717769049783,6.1867,171.37,171.35,2.1593]
[1717769049994,6.1867,171.36,171.35,2.1593]
[1717769050298,6.1867,171.36,171.3,35.01]
[1717769050498,22.1287,171.36,171.33,2.1595]
[1717769050700,6.4148,171.35,171.34,2.1594]
[1717769051979,6.3534,171.37,171.35,2.1592]
[1717769053107,16.3767,171.4,171.31,120.0]
[1717769053413,22.8254,171.4,171.38,2.1589]
[1717769053596,8.6075,171.39,171.35,2.1592]
[1717769053792,6.4487,171.39,171.36,2.1591]
[1717769054610,6.4487,171.39,171.37,2.159]
[1717769055116,6.4487,171.39,171.36,2.1591]
[1717769056115,6.4487,171.39,171.37,2.159]
[1717769056621,6.4487,171.39,171.36,2.1591]
[1717769056790,6.4487,171.39,171.37,2.159]
[1717769059094,6.4487,171.39,171.36,2.1591]
[1717769059294,6.0727,171.38,171.36,2.1591]
[1717769059506,8.2317,171.37,171.33,2.1594]
[1717769059717,6.6014,171.36,171.33,2.1594]
[1717769059892,6.6014,171.36,171.34,2.1594]
[1717769060915,6.6014,171.36,171.29,120.0]
[1717769060916,6.6014,171.36,171.35,2.1593]
[1717769061131,6.6014,171.36,171.33,2.1595]
[1717769061418,6.194,171.36,171.33,2.1595]
[1717769061623,6.194,171.36,171.33,2.1594]
[1717769061914,6.194,171.36,171.34,2.1594]
[1717769063221,6.194,171.36,171.35,2.1593]
[1717769063520,15.6468,171.39,171.29,155.01]
[1717769063702,21.7204,171.39,171.29,155.01]
[1717769063892,15.6468,171.39,171.35,2.1592]
[1717769064096,6.0736,171.38,171.35,2.1592]
[1717769064914,6.0736,171.38,171.36,2.1591]
[1717769065116,6.0736,171.38,171.35,2.1592]
[1717769070829,8.2325,171.38,171.34,2.1593]
[1717769071315,6.0736,171.38,171.35,2.1593]
[1717769072821,8.2325,171.38,171.34,2.1593]
[1717769073716,6.0736,171.38,171.35,2.1593]
[1717769074318,8.2326,171.38,171.35,2.1593]
[1717769074720,8.2326,171.38,171.34,2.1593]
[1717769074934,6.5802,171.37,171.34,2.1593]
[1717769076931,6.5802,171.37,171.35,2.1592]
[1717769077333,6.5802,171.37,171.34,2.1593]
[1717769077812,6.5802,171.36,171.33,2.1595]
[1717769078011,6.5802,171.36,171.28,35.01]
[1717769078331,6.5802,171.36,171.34,2.1594]
[1717769079928,6.5802,171.36,171.28,35.01]
[1717769080127,6.5802,171.36,171.34,2.1594]
[1717769082638,6.5802,171.36,171.33,2.1594]
[1717769082835,6.5802,171.36,171.34,2.1594]
[1717769083336,6.5802,171.36,171.33,2.1595]
[1717769083520,6.6492,171.35,171.32,2.1596]
[1717769083719,6.6492,171.35,171.33,2.1595]
[1717769083918,22.7624,171.37,171.34,2.1594]
[1717769084326,22.7624,171.37,171.33,2.1594]
[1717769084327,6.6492,171.36,171.33,2.1594]
[1717769084544,6.6492,171.36,171.34,2.1593]
[1717769085131,6.6492,171.36,171.33,2.1595]
[1717769085920,6.6492,171.36,171.34,2.1594]
[1717769087344,6.6492,171.36,171.35,2.1593]
[1717769088524,6.6492,171.36,171.34,2.1594]
[1717769090245,6.6492,171.36,171.35,2.1593]
[1717769091050,6.6492,171.36,171.34,2.1593]
[1717769091937,8.4837,171.38,171.35,2.1593]
[1717769092137,8.4837,171.38,171.34,2.1593]
[1717769098752,2.159,171.37,171.34,2.1593]
[1717769099342,8.4838,171.38,171.34,2.1593]
[1717769099544,6.0398,171.37,171.34,2.1593]
[1717769102371,2.159,171.38,171.34,2.1593]
[1717769102561,6.0294,171.43,171.33,155.01]
[1717769102859,6.4333,171.42,171.39,2.1587]
[1717769103042,2.1586,171.41,171.31,155.01]
[1717769103249,8.5919,171.41,171.36,2.1591]
[1717769103665,6.4822,171.4,171.36,2.1591]
[1717769103834,6.4822,171.4,171.37,2.159]
[1717769105259,6.4822,171.4,171.38,2.1589]
[1717769105644,6.4822,171.4,171.37,2.159]
[1717769106758,8.6258,171.42,171.38,2.1589]
[1717769106933,6.4673,171.42,171.38,2.1589]
[1717769107134,6.4673,171.42,171.39,2.1588]
[1717769107555,6.4673,171.42,171.4,2.1586]
[1717769107845,18.363,171.45,171.35,155.01]
[1717769108054,22.7446,171.45,171.41,2.1584]
[1717769108268,8.6979,171.44,171.35,35.01]
[1717769108571,2.1583,171.43,171.35,35.01]
[1717769108767,8.6979,171.44,171.35,35.01]
[1717769109140,6.5397,171.44,171.35,35.01]
[1717769109345,6.5397,171.44,171.41,2.1585]
[1717769109943,6.5397,171.44,171.4,2.1586]
[1717769110138,6.5397,171.44,171.4,2.1585]
[1717769110356,6.5397,171.44,171.34,35.01]
[1717769113272,6.5397,171.44,171.35,155.01]
[1717769117066,2.1584,171.42,171.32,35.01]
[1717769117268,27.3491,171.44,171.32,35.01]
[1717769117570,2.1585,171.41,171.32,35.01]
[1717769117753,2.1586,171.41,171.32,35.01]
[1717769117956,2.1586,171.41,171.3,35.01]
[1717769118379,2.1586,171.41,171.36,2.159]
[1717769118676,6.2094,171.4,171.37,2.159]
[1717769120380,6.256,171.4,171.37,2.159]
[1717769121675,2.1585,171.41,171.37,2.159]
[1717769121858,6.136,171.39,171.37,2.159]
[1717769123578,6.136,171.39,171.36,2.1591]
[1717769123780,6.136,171.39,171.37,2.159]
[1717769124276,6.136,171.39,171.36,2.1591]
[1717769124486,15.146,171.39,171.35,2.1592]
[1717769124664,6.2627,171.37,171.35,2.1592]
[1717769126182,21.684,171.37,171.33,2.1594]
[1717769126364,6.6065,171.36,171.33,2.1594]
[1717769126754,6.6065,171.35,171.33,2.1595]
[1717769126958,6.6065,171.35,171.32,2.1596]
[1717769128776,6.6065,171.35,171.33,2.1595]
[1717769129665,6.6065,171.35,171.32,2.1596]
[1717769130968,6.6065,171.35,171.33,2.1595]
[1717769137592,6.6065,171.35,171.32,2.1596]
[1717769138371,6.6065,171.35,171.33,2.1595]
[1717769139793,6.6065,171.35,171.32,2.1596]
[1717769140098,6.6065,171.35,171.33,2.1595]
[1717769144475,6.3318,171.35,171.25,40.60491987]
[1717769144706,2.1595,171.34,171.25,0.8080127]
[1717769144876,6.3318,171.34,171.25,0.8080127]
[1717769145197,6.3318,171.32,171.3,2.1599]
[1717769145574,2.1595,171.34,171.25,0.8080127]
[1717769145575,6.3233,171.31,171.25,0.8080127]
[1717769145803,6.3233,171.31,171.29,2.16]
[1717769146371,6.3233,171.29,171.25,0.8080127]
[1717769146876,6.3233,171.29,171.27,2.1602]
[1717769150087,6.3233,171.29,171.27,2.1603]
[1717769150383,16.066,171.35,171.25,0.8080127]
[1717769150609,8.4668,171.27,171.25,0.8080127]
[1717769150790,65.0,171.34,171.25,0.8080127]
[1717769150791,24.5328,171.26,171.25,0.8080127]
[1717769151189,28.8537,171.26,171.25,0.8080127]
[1717769151389,73.8537,171.26,171.25,0.8080127]
[1717769152002,93.8537,171.26,171.25,0.8080127]
[1717769153507,17.7581,171.22,171.11,35.03]
[1717769153686,6.3584,171.21,171.17,2.1614]
[1717769154082,6.3584,171.21,171.11,35.03]
[1717769154083,6.3584,171.21,171.18,2.1614]
[1717769155390,6.3584,171.21,171.15,2.1617]
[1717769155606,8.5195,171.21,171.17,2.1615]
[1717769155809,6.3584,171.21,171.17,2.1615]
[1717769156026,6.3584,171.21,171.18,2.1614]
[1717769156319,6.3584,171.21,171.11,35.03]
[1717769156695,6.3584,171.21,171.18,2.1614]
[1717769158508,6.3584,171.21,171.17,2.1615]
[1717769158715,6.3584,171.21,171.11,35.03]
[1717769159094,15.9842,171.21,171.17,2.1614]
[1717769159299,6.0386,171.19,171.17,2.1614]
[1717769159693,6.0386,171.19,171.16,2.1616]
[1717769160415,6.0386,171.19,171.11,35.03]
[1717769160416,6.0386,171.19,171.17,2.1615]
[1717769160917,6.0386,171.19,171.18,2.1614]
[1717769161700,6.0386,171.19,171.17,2.1615]
[1717769161901,6.0386,171.19,171.17,2.1614]
[1717769162101,6.0386,171.19,171.18,2.1614]
[1717769163629,8.426,171.22,171.18,2.1614]
[1717769163919,6.151,171.21,171.18,2.1614]
[1717769165522,6.2553,171.21,171.1,124.56260272]
[1717769165828,6.2553,171.21,171.18,2.1614]
[1717769166317,2.1609,171.22,171.17,2.1615]
[1717769166698,6.0478,171.2,171.16,2.1616]
[1717769167114,6.0478,171.2,171.17,2.1615]
[1717769169928,6.0478,171.2,171.18,2.1614]
[1717769170317,6.0478,171.2,171.17,2.1615]
[1717769171633,6.0478,171.2,171.18,2.1614]
[1717769172843,6.0788,171.23,171.18,2.1614]
[1717769173021,8.2396,171.23,171.18,2.1614]
[1717769173540,6.0788,171.23,171.18,2.1614]
[1717769173746,2.161,171.22,171.17,2.1615]
[1717769173955,2.161,171.22,171.12,120.0]
[1717769174122,8.7413,171.22,171.17,2.1614]
[1717769175154,6.5803,171.22,171.18,2.1614]
[1717769178358,6.2618,171.24,171.14,120.0]
[1717769178648,2.1604,171.27,171.15,80.03]
[1717769178837,8.4222,171.26,171.21,2.161]
[1717769179023,2.1605,171.25,171.2,2.1611]
[1717769179459,2.1607,171.24,171.19,2.1612]
[1717769179755,2.1606,171.25,171.2,2.1612]
[1717769180132,2.1607,171.24,171.19,2.1612]
[1717769180730,2.1606,171.25,171.19,2.1612]
[1717769180955,2.1607,171.24,171.19,2.1612]
[1717769181738,8.531,171.24,171.19,2.1612]
[1717769181931,6.3703,171.23,171.19,2.1612]
[1717769182738,6.3703,171.23,171.13,35.03]
[1717769182939,6.3703,171.23,171.2,2.1612]
[1717769183237,8.5309,171.25,171.2,2.1612]
[1717769183954,22.1605,171.26,171.21,2.161]
[1717769184136,2.1605,171.26,171.21,2.161]
[1717769184937,2.1605,171.26,171.2,2.1611]
[1717769185155,2.1605,171.26,171.21,2.161]
[1717769185344,2.1604,171.27,171.16,120.0]
[1717769185549,2.1604,171.27,171.21,2.1609]
[1717769185866,2.1604,171.27,171.16,120.0]
[1717769185867,8.5467,171.27,171.22,2.1609]
[1717769186255,8.5467,171.27,171.21,2.161]
[1717769186561,6.3863,171.27,171.21,2.161]
[1717769186764,8.5467,171.27,171.22,2.1609]
[1717769187859,12.8673,171.27,171.14,155.03]
[1717769188170,12.8673,171.27,171.13,35.03]
[1717769188171,6.3863,171.27,171.13,35.03]
[1717769188368,6.3863,171.27,171.2,2.1611]
[1717769188545,6.1374,171.27,171.2,2.1611]
[1717769188739,2.1605,171.26,171.2,2.1611]
[1717769189248,8.5963,171.26,171.21,2.161]
[1717769190367,6.4358,171.26,171.21,2.161]
[1717769191067,2.1604,171.26,171.21,2.161]
[1717769191842,8.3118,171.26,171.21,2.161]
[1717769192174,2.1605,171.25,171.2,2.1611]